[Event "Frauenbundesliga 2024-25"]
[Site "Germany"]
[Date "2025.01.26"]
[Round "4.12"]
[White "Rosmait, Emily"]
[Black "Schuster, Rebekka"]
[Result "1-0"]
[Annotator "TA"]
[ECO "C06"]
[WhiteElo "1965"]
[BlackElo "1857"]
[PlyCount "57"]
[EventDate "2024.11.06"]
[EventType "team-tourn"]
[EventCountry "GER"]
[SourceTitle "playchess.com"]
[Source "ChessBase"]
[SourceQuality "1"]
[TimeControl "40/5400+30:1800+30"]

{[%evp 23,57,41,37,42,59,52,107,29,28,14,28,30,37,18,201,204,329,340,492,482,500,413,536,545,1455,1450,1493,1312,5360,5343,29996,29991,29991,29992,29993,29994]} 1. e4 {[%emt 0:00:04]} e6 {[%emt 0:00:03]} 2. d4 {[%emt 0:00:09]} d5 {[%emt 0:00:04]} 3. Nd2 {[%emt 0:00:05]} Nf6 {[%emt 0:00:07]} 4. e5 {[%emt 0:00:05]} Nfd7 {[%emt 0:00:03]} 5. Bd3 {[%emt 0:00:24]} c5 {[%emt 0:00:07]} 6. c3 {[%emt 0:00:06]} Nc6 {[%emt 0:00:04]} 7. Ne2 {[%emt 0:00:27]} cxd4 {[%emt 0:00:17]} 8. cxd4 {[%emt 0:00:11]} f6 {[%emt 0:00:11]} 9. exf6 {[%emt 0:00:32]} Nxf6 {[%emt 0:00:06]} 10. O-O {[%emt 0:00:22]} Bd6 {[%emt 0:00:14]} 11. Nf3 {[%emt 0:00:56]} Qc7 {[%emt 0:03:35]} 12. h3 {[%emt 0:15:25]} O-O {[%emt 0:00:11]} 13. Be3 {[%emt 0:02:06] C06: French Tarrasch: 3...Nf6 4 e5 Nfd7 5 Bd3 main lines.} Nh5 {[%emt 0:13:35][%cal Of8f3]} 14. Nc3 {[%emt 0:15:03][%cal Od3h7]} a6 {[%emt 0:00:18] [#]} ({Black should try} 14... Bf4 $14) 15. Ng5 {[%emt 0:02:57]} (15. Bxh7+ $1 $16 Kxh7 16. Ng5+ Kg6 17. Qc2+ Kf6 (17... Rf5 18. g4 $16) 18. Qh7) 15... g6 $11 {[%emt 0:01:07]} 16. Rc1 $146 {[%emt 0:04:46]} (16. Nf3 Nf4 17. Bxf4 Bxf4 18. Ne2 Bd6 19. Rc1 Qg7 20. Bb1 Bd7 21. a3 Na5 22. Ba2 {½-½ Vardakas,G (1739)-Malataras,G (1570) GRE-ch U12 Rio Achaia 2015 (7.3)}) 16... Nf4 {[%emt 0:09:22]} 17. Bb1 {[%emt 0:03:18]} Qe7 {[%emt 0:03:05]} 18. h4 {[%emt 0:07:30]} Qf6 $2 {[%emt 0:06:28] This move loses the game for Black.} (18... Bd7 $1 $11 {and Black stays safe.}) 19. g3 $18 {[%emt 0:04:20]} Nh5 {[%emt 0:04:15]} (19... h6 {was necessary.}) 20. Nxh7 $1 {[%emt 0:02:34]} Qg7 {[%emt 0:04:23]} (20... Kxh7 $142 21. Qxh5+ Kg7 22. Qh6+ Kg8) 21. Nxf8 {[%emt 0:01:24]} Kxf8 {[%emt 0:01:38]} 22. Qf3+ {[%emt 0:06:48]} Kg8 {[%emt 0:00:43] [#]} 23. Nxd5 $1 {[%emt 0:03:23][%cal Bc3d5,Bd5f6,Bf6e8,Be8g7][%mdl 32] aiming for Nb6.} Nxd4 {[%emt 0:05:09]} (23... Bd7 24. Nb6) 24. Bxd4 {[%emt 0:03:31]} Qxd4 {[%emt 0:00:10]} 25. Rfd1 {[%emt 0:11:07]} Qxb2 {[%emt 0:05:51]} 26. Bxg6 {[%emt 0:00:54] Qf7+ would kill now.} Ng7 {[%emt 0:01:28]} 27. Nf6+ {[%emt 0:05:01] White mates.} Kh8 {[%emt 0:00:28]} 28. Ne8 {[%emt 0:01:27]} Ba3 {[%emt 0:09:52]} 29. Nxg7 {[%emt 0:01:45] Weighted Error Value: White=0.29 (precise) /Black=1.48  Loses game:     	---       	Black=1      Mistake:       	White=1     	Black=3      Inaccurate:     	---       	Black=1      OK:         	White=5     	Black=2      Best:        	White=2     	---        Strong:       	White=1     	---} 1-0

[Event "Frauenbundesliga 2024-25"]
[Site "Germany"]
[Date "2025.02.15"]
[Round "5.1"]
[White "Maltsevskaya, Aleksandra"]
[Black "Klek, Hanna Marie"]
[Result "1-0"]
[Annotator "ChessBase"]
[ECO "C90"]
[WhiteElo "2371"]
[BlackElo "2289"]
[PlyCount "95"]
[EventDate "2024.11.06"]
[EventType "team-tourn"]
[EventCountry "GER"]
[SourceTitle "playchess.com"]
[Source "ChessBase"]
[SourceQuality "1"]
[TimeControl "40/5400+30:1800+30"]

1. e4 {[%emt 0:00:03]} e5 {[%emt 0:00:10]} 2. Nf3 {[%emt 0:00:06]} Nc6 {[%emt 0:00:23]} 3. Bb5 {[%emt 0:00:09]} a6 {[%emt 0:00:07]} 4. Ba4 {[%emt 0:00:06]} Nf6 {[%emt 0:00:05]} 5. O-O {[%emt 0:00:07]} Be7 {[%emt 0:00:04]} 6. Re1 {[%emt 0:00:06]} b5 {[%emt 0:00:09]} 7. Bb3 {[%emt 0:00:07]} d6 {[%emt 0:00:02]} 8. a4 {[%emt 0:00:08]} Bd7 {[%emt 0:06:32]} 9. c3 {[%emt 0:00:19]} Na5 {[%emt 0:04:16]} 10. Bc2 {[%emt 0:00:07]} c5 {[%emt 0:00:10]} 11. d4 {[%emt 0:00:07]} cxd4 {[%emt 0:11:36]} 12. cxd4 {[%emt 0:00:22]} Nc6 {[%emt 0:00:12]} 13. axb5 {[%emt 0:04:37]} axb5 {[%emt 0:04:03]} 14. Rxa8 {[%emt 0:00:08]} Qxa8 {[%emt 0:00:04]} 15. Nc3 {[%emt 0:00:45]} Bg4 {[%emt 0:10:15]} 16. Nxb5 {[%emt 0:18:05]} O-O {[%emt 0:00:26]} 17. Ba4 {[%emt 0:26:50]} Ne8 {[%emt 0:23:29]} 18. dxe5 {[%emt 0:30:57]} dxe5 {[%emt 0:02:21]} 19. Nc3 {[%emt 0:10:44]} Nd4 {[%emt 0:00:55]} 20. Nd5 {[%emt 0:00:07]} Bc5 {[%emt 0:02:31]} 21. b4 {[%emt 0:00:07]} Ba7 {[%emt 0:01:36]} 22. Be3 {[%emt 0:03:20]} Nd6 {[%emt 0:01:11]} 23. Bxd4 {[%emt 0:01:08]} Bxd4 {[%emt 0:00:08]} 24. Bc6 {[%emt 0:00:10]} Qa7 {[%emt 0:00:42]} 25. Ne3 {[%emt 0:03:19]} Bxf3 {[%emt 0:09:14]} 26. Qxf3 {[%emt 0:00:06]} Qa2 {[%emt 0:03:52]} 27. Nd5 {[%emt 0:00:47]} Kh8 {[%emt 0:01:37]} 28. g4 {[%emt 0:00:35]} Qc2 {[%emt 0:04:22]} 29. b5 {[%emt 0:00:10]} Rb8 {[%emt 0:00:27]} 30. Kg2 {[%emt 0:00:49]} Kg8 {[%emt 0:01:19]} 31. Re2 {[%emt 0:00:34]} Qc4 {[%emt 0:03:47]} 32. Ne7+ {[%emt 0:00:05]} Kf8 {[%emt 0:00:57]} 33. Bd5 {[%emt 0:00:07]} Qc7 {[%emt 0:03:40]} 34. Nc6 {[%emt 0:00:18]} Rxb5 {[%emt 0:00:28]} 35. Nxd4 {[%emt 0:01:35]} exd4 {[%emt 0:00:12]} 36. e5 {[%emt 0:00:04]} Qc5 {[%emt 0:03:52]} 37. Bc6 {[%emt 0:00:05]} d3 {[%emt 0:01:30]} 38. Ra2 {[%emt 0:01:01]} Qxe5 {[%emt 0:00:27]} 39. Ra8+ {[%emt 0:00:31]} Ke7 {[%emt 0:00:12]} 40. Bxb5 {[%emt 0:00:43]} Qxb5 {[%emt 0:00:33]} 41. Ra3 {[%emt 0:30:50]} f5 {[%emt 0:06:35]} 42. Rxd3 {[%emt 0:00:00]} fxg4 {[%emt 0:01:53]} 43. Qe3+ {[%emt 0:00:00]} Kd7 {[%emt 0:04:04]} 44. Qd4 {[%emt 0:00:00]} Qc6+ {[%emt 0:01:45]} 45. Kg1 {[%emt 0:00:00]} Ke6 {[%emt 0:01:10]} 46. Re3+ {[%emt 0:00:00]} Kf7 {[%emt 0:00:54]} 47. Qf4+ {[%emt 0:00:00]} Kg8 {[%emt 0:00:18]} 48. Re6 {[%emt 0:00:00]} 1-0

[Event "Frauenbundesliga 2024-25"]
[Site "Germany"]
[Date "2025.02.15"]
[Round "5.1"]
[White "Antolak, Julia"]
[Black "Voicu-Jagodzinsky, Carmen"]
[Result "1-0"]
[Annotator "ChessBase"]
[ECO "D58"]
[WhiteElo "2305"]
[BlackElo "2217"]
[PlyCount "115"]
[EventDate "2024.11.06"]
[EventType "team-tourn"]
[EventCountry "GER"]
[SourceTitle "playchess.com"]
[Source "ChessBase"]
[SourceQuality "1"]
[TimeControl "40/5400+30:1800+30"]

1. d4 {[%emt 0:00:03]} Nf6 {[%emt 0:00:17]} 2. c4 {[%emt 0:00:05]} e6 {[%emt 0:00:04]} 3. Nc3 {[%emt 0:00:05]} d5 {[%emt 0:00:06]} 4. Bg5 {[%emt 0:00:06]} Be7 {[%emt 0:00:06]} 5. e3 {[%emt 0:00:04]} O-O {[%emt 0:00:39]} 6. Nf3 {[%emt 0:00:05]} h6 {[%emt 0:00:13]} 7. Bh4 {[%emt 0:00:05]} b6 {[%emt 0:00:23]} 8. Bd3 {[%emt 0:00:07]} Bb7 {[%emt 0:00:07]} 9. O-O {[%emt 0:00:08]} Nbd7 {[%emt 0:00:52]} 10. cxd5 {[%emt 0:02:01]} Nxd5 {[%emt 0:01:58]} 11. Nxd5 {[%emt 0:01:02]} Bxh4 {[%emt 0:05:49]} 12. Nxc7 {[%emt 0:01:36]} Bxf2+ {[%emt 0:00:23]} 13. Rxf2 {[%emt 0:00:06]} Qxc7 {[%emt 0:00:02]} 14. Qe2 {[%emt 0:01:21]} Rac8 {[%emt 0:02:06]} 15. Raf1 {[%emt 0:01:26]} Qd6 {[%emt 0:15:20]} 16. Bb1 {[%emt 0:08:29]} Rc7 {[%emt 0:10:13]} 17. e4 {[%emt 0:10:34]} e5 {[%emt 0:03:09]} 18. Nh4 {[%emt 0:10:38]} exd4 {[%emt 0:09:17]} 19. Nf5 {[%emt 0:04:03]} Qe5 {[%emt 0:02:15]} 20. Qg4 {[%emt 0:01:13]} Kh8 {[%emt 0:02:09]} 21. Qh3 {[%emt 0:20:48]} Qf6 {[%emt 0:23:33]} 22. e5 {[%emt 0:04:30]} Qg5 {[%emt 0:03:25]} 23. Nxd4 {[%emt 0:03:49]} Rc1 {[%emt 0:01:30]} 24. Bd3 {[%emt 0:14:20]} Nc5 {[%emt 0:08:01]} 25. e6 {[%emt 0:05:15]} Rxf1+ {[%emt 0:04:00]} 26. Bxf1 {[%emt 0:00:47]} Qe5 {[%emt 0:02:18]} 27. Nf5 {[%emt 0:07:06]} Qxe6 {[%emt 0:01:48]} 28. Qg3 {[%emt 0:00:26]} Qg6 {[%emt 0:01:25]} 29. Qxg6 {[%emt 0:01:49]} fxg6 {[%emt 0:00:01]} 30. Ne7 {[%emt 0:00:43]} Rxf2 {[%emt 0:01:15]} 31. Kxf2 {[%emt 0:00:01]} g5 {[%emt 0:00:22]} 32. Ke3 {[%emt 0:01:56]} Nd7 {[%emt 0:02:13]} 33. g3 {[%emt 0:01:09]} Ne5 {[%emt 0:00:08]} 34. Be2 {[%emt 0:00:22]} g6 {[%emt 0:00:49]} 35. Kd4 {[%emt 0:00:51]} Nc6+ {[%emt 0:00:41]} 36. Nxc6 {[%emt 0:00:05]} Bxc6 {[%emt 0:00:01]} 37. Ke5 {[%emt 0:00:14]} Kg7 {[%emt 0:00:05]} 38. Kd6 {[%emt 0:01:06]} Be4 {[%emt 0:01:01]} 39. Kc7 {[%emt 0:00:18]} Kf6 {[%emt 0:01:00]} 40. Kb8 {[%emt 0:00:23]} a5 {[%emt 0:00:12]} 41. Kc7 {[%emt 0:30:53]} a4 {[%emt 0:09:20]} 42. Kxb6 {[%emt 0:00:00]} Kf5 {[%emt 0:11:48]} 43. Bd1 {[%emt 0:00:00]} h5 {[%emt 0:01:49]} 44. Bxa4 {[%emt 0:00:00]} Kg4 {[%emt 0:00:07]} 45. Bc6 {[%emt 0:00:00]} Bxc6 {[%emt 0:09:26]} 46. Kxc6 {[%emt 0:00:00]} Kh3 {[%emt 0:00:01]} 47. b4 {[%emt 0:00:00]} Kxh2 {[%emt 0:00:09]} 48. b5 {[%emt 0:00:00]} h4 {[%emt 0:00:42]} 49. gxh4 {[%emt 0:00:00]} gxh4 {[%emt 0:00:01]} 50. b6 {[%emt 0:00:00]} g5 {[%emt 0:00:01]} 51. b7 {[%emt 0:00:00]} g4 {[%emt 0:00:03]} 52. b8=Q+ {[%emt 0:00:00]} g3 {[%emt 0:00:02]} 53. Kd5 {[%emt 0:00:00]} h3 {[%emt 0:00:50]} 54. Ke4 {[%emt 0:00:00]} Kg2 {[%emt 0:00:07]} 55. Qb2+ {[%emt 0:00:00]} Kg1 {[%emt 0:00:05]} 56. Kf3 {[%emt 0:00:00]} g2 {[%emt 0:00:15]} 57. Qc1+ {[%emt 0:00:00]} Kh2 {[%emt 0:00:08]} 58. Ke4 {[%emt 0:09:22]} 1-0

[Event "Frauenbundesliga 2024-25"]
[Site "Germany"]
[Date "2025.02.15"]
[Round "5.1"]
[White "Rogule, Laura"]
[Black "Wagner, Dinara"]
[Result "0-1"]
[Annotator "ChessBase"]
[ECO "E04"]
[WhiteElo "2239"]
[BlackElo "2435"]
[PlyCount "76"]
[EventDate "2024.11.06"]
[EventType "team-tourn"]
[EventCountry "GER"]
[SourceTitle "playchess.com"]
[Source "ChessBase"]
[SourceQuality "1"]
[TimeControl "40/5400+30:1800+30"]

1. d4 {[%emt 0:00:04]} Nf6 {[%emt 0:00:03]} 2. Nf3 {[%emt 0:02:50]} d5 {[%emt 0:00:05]} 3. c4 {[%emt 0:00:43]} e6 {[%emt 0:00:04]} 4. g3 {[%emt 0:01:43]} dxc4 {[%emt 0:00:04]} 5. Bg2 {[%emt 0:03:28]} Nbd7 {[%emt 0:00:19]} 6. Nbd2 {[%emt 0:16:04]} b5 {[%emt 0:02:25]} 7. a4 {[%emt 0:00:56]} c6 {[%emt 0:00:36]} 8. e4 {[%emt 0:01:50]} Be7 {[%emt 0:13:20]} 9. O-O {[%emt 0:05:03]} h6 {[%emt 0:02:40]} 10. d5 {[%emt 0:32:37]} cxd5 {[%emt 0:18:24]} 11. exd5 {[%emt 0:00:27]} exd5 {[%emt 0:12:32]} 12. Nd4 {[%emt 0:03:01]} Bc5 {[%emt 0:10:23]} 13. Re1+ {[%emt 0:06:47]} Kf8 {[%emt 0:00:03]} 14. Nxb5 {[%emt 0:01:02]} Rb8 {[%emt 0:01:50]} 15. Nxc4 {[%emt 0:20:29]} dxc4 {[%emt 0:02:27]} 16. Bf4 {[%emt 0:00:26]} Bb7 {[%emt 0:06:28]} 17. Bd6+ {[%emt 0:00:45]} Bxd6 {[%emt 0:00:32]} 18. Qxd6+ {[%emt 0:00:10]} Kg8 {[%emt 0:00:03]} 19. Bxb7 {[%emt 0:01:35]} Rxb7 {[%emt 0:00:05]} 20. Re7 {[%emt 0:00:00]} Rb6 {[%emt 0:03:34]} 21. Qa3 {[%emt 0:00:21]} a6 {[%emt 0:04:05]} 22. Nd4 {[%emt 0:00:22]} Nd5 {[%emt 0:01:13]} 23. Re2 {[%emt 0:00:10]} Qf6 {[%emt 0:00:57]} 24. Rd1 {[%emt 0:00:32]} Kh7 {[%emt 0:01:24]} 25. a5 {[%emt 0:00:48]} Rb7 {[%emt 0:01:08]} 26. Qa4 {[%emt 0:00:19]} Nb4 {[%emt 0:04:30]} 27. Nc2 {[%emt 0:00:51]} Nc5 {[%emt 0:00:32]} 28. Qa3 {[%emt 0:00:16]} Nbd3 {[%emt 0:00:35]} 29. Ne3 {[%emt 0:00:15]} Qf3 {[%emt 0:02:37]} 30. Rdd2 {[%emt 0:00:56]} Ne4 {[%emt 0:01:53]} 31. Nxc4 {[%emt 0:00:28]} Nxd2 {[%emt 0:00:42]} 32. Rxd2 {[%emt 0:00:11]} Ne1 {[%emt 0:00:03]} 33. Ne3 {[%emt 0:00:11]} Re8 {[%emt 0:01:06]} 34. Qc3 {[%emt 0:00:45]} Qe4 {[%emt 0:00:38]} 35. Rd6 {[%emt 0:00:48]} Nf3+ {[%emt 0:00:57]} 36. Kf1 {[%emt 0:00:20]} Nxh2+ {[%emt 0:01:06]} 37. Ke2 {[%emt 0:00:08]} Qf3+ {[%emt 0:00:51]} 38. Ke1 {[%emt 0:00:06]} Rbe7 {[%emt 0:00:04]} 0-1

[Event "Frauenbundesliga 2024-25"]
[Site "Germany"]
[Date "2025.02.15"]
[Round "5.2"]
[White "Narva, Mai"]
[Black "Berzina, Ilze"]
[Result "1/2-1/2"]
[Annotator "ChessBase"]
[ECO "C60"]
[WhiteElo "2384"]
[BlackElo "2197"]
[PlyCount "70"]
[EventDate "2024.11.06"]
[EventType "team-tourn"]
[EventCountry "GER"]
[SourceTitle "playchess.com"]
[Source "ChessBase"]
[SourceQuality "1"]
[TimeControl "40/5400+30:1800+30"]

1. e4 {[%emt 0:00:03]} e5 {[%emt 0:00:32]} 2. Nf3 {[%emt 0:00:11]} Nc6 {[%emt 0:00:08]} 3. Bb5 {[%emt 0:00:13]} g6 {[%emt 0:00:31]} 4. c3 {[%emt 0:00:17]} Bg7 {[%emt 0:02:07]} 5. d4 {[%emt 0:00:18]} exd4 {[%emt 0:00:45]} 6. cxd4 {[%emt 0:00:06]} a6 {[%emt 0:00:20]} 7. Ba4 {[%emt 0:00:24]} b5 {[%emt 0:00:48]} 8. Bb3 {[%emt 0:00:07]} Na5 {[%emt 0:00:41]} 9. O-O {[%emt 0:03:53]} Nxb3 {[%emt 0:04:51]} 10. Qxb3 {[%emt 0:00:06]} Ne7 {[%emt 0:00:41]} 11. d5 {[%emt 0:06:39]} d6 {[%emt 0:04:32]} 12. Bd2 {[%emt 0:00:28]} O-O {[%emt 0:03:03]} 13. Bc3 {[%emt 0:00:22]} Bd7 {[%emt 0:16:26]} 14. Bxg7 {[%emt 0:05:18]} Kxg7 {[%emt 0:00:06]} 15. Nc3 {[%emt 0:00:35]} h6 {[%emt 0:21:56]} 16. Rac1 {[%emt 0:06:41]} g5 {[%emt 0:02:38]} 17. Ne2 {[%emt 0:04:08]} Rc8 {[%emt 0:14:08]} 18. Ng3 {[%emt 0:07:26]} Ng6 {[%emt 0:02:16]} 19. Qa3 {[%emt 0:05:48]} Nf4 {[%emt 0:02:18]} 20. Nd4 {[%emt 0:05:05]} Qf6 {[%emt 0:02:37]} 21. Ngf5+ {[%emt 0:03:26]} Kh7 {[%emt 0:00:52]} 22. Rc2 {[%emt 0:02:01]} Nxd5 {[%emt 0:03:28]} 23. exd5 {[%emt 0:05:46]} Bxf5 {[%emt 0:00:08]} 24. Rd2 {[%emt 0:00:33]} Be4 {[%emt 0:05:51]} 25. Nc6 {[%emt 0:02:08]} Ra8 {[%emt 0:00:51]} 26. Re1 {[%emt 0:02:48]} Bf5 {[%emt 0:03:52]} 27. Re7 {[%emt 0:04:19]} Rae8 {[%emt 0:00:55]} 28. Rde2 {[%emt 0:01:06]} Rxe7 {[%emt 0:00:25]} 29. Rxe7 {[%emt 0:00:28]} Bg6 {[%emt 0:00:58]} 30. h3 {[%emt 0:05:51]} Qf5 {[%emt 0:02:09]} 31. Qb3 {[%emt 0:00:42]} Qb1+ {[%emt 0:02:24]} 32. Kh2 {[%emt 0:00:05]} Qf5 {[%emt 0:00:10]} 33. Kg1 {[%emt 0:02:10]} Qb1+ {[%emt 0:00:19]} 34. Kh2 {[%emt 0:00:04]} Qf5 {[%emt 0:00:46]} 35. Kg1 {[%emt 0:07:13]} Qb1+ {[%emt 0:00:20]} 1/2-1/2

[Event "Frauenbundesliga 2024-25"]
[Site "Germany"]
[Date "2025.02.15"]
[Round "5.2"]
[White "Koepke, Elena"]
[Black "Kiolbasa, Oliwia"]
[Result "1/2-1/2"]
[Annotator "ChessBase"]
[ECO "C47"]
[WhiteElo "2224"]
[BlackElo "2361"]
[PlyCount "156"]
[EventDate "2024.11.06"]
[EventType "team-tourn"]
[EventCountry "GER"]
[SourceTitle "playchess.com"]
[Source "ChessBase"]
[SourceQuality "1"]
[TimeControl "40/5400+30:1800+30"]

1. e4 {[%emt 0:00:20]} e5 {[%emt 0:00:07]} 2. Nf3 {[%emt 0:00:04]} Nc6 {[%emt 0:00:07]} 3. Nc3 {[%emt 0:00:06]} Nf6 {[%emt 0:00:18]} 4. d4 {[%emt 0:00:05]} exd4 {[%emt 0:00:20]} 5. Nxd4 {[%emt 0:00:04]} Bb4 {[%emt 0:00:30]} 6. Nxc6 {[%emt 0:00:08]} bxc6 {[%emt 0:00:07]} 7. Bd3 {[%emt 0:00:05]} O-O {[%emt 0:00:22]} 8. O-O {[%emt 0:00:08]} Re8 {[%emt 0:00:18]} 9. Bg5 {[%emt 0:00:53]} h6 {[%emt 0:00:35]} 10. Bh4 {[%emt 0:00:04]} d5 {[%emt 0:01:29]} 11. exd5 {[%emt 0:03:17]} g5 {[%emt 0:00:24]} 12. Bg3 {[%emt 0:00:38]} cxd5 {[%emt 0:00:12]} 13. Nb5 {[%emt 0:17:06]} Ba5 {[%emt 0:00:23]} 14. c3 {[%emt 0:05:42]} Bd7 {[%emt 0:10:52]} 15. a4 {[%emt 0:04:52]} a6 {[%emt 0:06:21]} 16. Nd4 {[%emt 0:02:59]} Ne4 {[%emt 0:09:43]} 17. Bxe4 {[%emt 0:34:01]} dxe4 {[%emt 0:04:03]} 18. Qh5 {[%emt 0:00:51]} Qf6 {[%emt 0:40:40]} 19. Rfd1 {[%emt 0:04:57]} Re7 {[%emt 0:04:49]} 20. Nc2 {[%emt 0:05:36]} Bb6 {[%emt 0:12:44]} 21. Ne3 {[%emt 0:06:35]} Bxe3 {[%emt 0:02:03]} 22. fxe3 {[%emt 0:00:01]} Qb6 {[%emt 0:00:44]} 23. Qe2 {[%emt 0:02:47]} a5 {[%emt 0:00:33]} 24. Rd4 {[%emt 0:00:38]} Bf5 {[%emt 0:01:24]} 25. Rad1 {[%emt 0:03:08]} Rae8 {[%emt 0:01:18]} 26. Be1 {[%emt 0:03:44]} Bc8 {[%emt 0:01:15]} 27. c4 {[%emt 0:01:33]} Ba6 {[%emt 0:01:15]} 28. Bc3 {[%emt 0:00:39]} Re6 {[%emt 0:00:32]} 29. Qd2 {[%emt 0:01:54]} Qb3 {[%emt 0:00:23]} 30. Ra1 {[%emt 0:01:24]} c5 {[%emt 0:00:28]} 31. Rd8 {[%emt 0:00:54]} Qb6 {[%emt 0:01:04]} 32. Rxe8+ {[%emt 0:00:13]} Rxe8 {[%emt 0:00:05]} 33. Bxa5 {[%emt 0:00:50]} Qb3 {[%emt 0:00:22]} 34. Bc3 {[%emt 0:00:30]} Qxc4 {[%emt 0:00:17]} 35. Qd6 {[%emt 0:00:23]} Qe6 {[%emt 0:01:12]} 36. Qxc5 {[%emt 0:00:22]} Rd8 {[%emt 0:00:10]} 37. Qe5 {[%emt 0:00:55]} Qxe5 {[%emt 0:00:38]} 38. Bxe5 {[%emt 0:00:01]} Rd3 {[%emt 0:00:19]} 39. Re1 {[%emt 0:00:49]} Rb3 {[%emt 0:00:30]} 40. Bc3 {[%emt 0:00:13]} f5 {[%emt 0:00:44]} 41. Kf2 {[%emt 0:02:58]} Kf7 {[%emt 0:03:38]} 42. a5 {[%emt 0:03:07]} Ke6 {[%emt 0:00:52]} 43. Ra1 {[%emt 0:01:33]} Rb7 {[%emt 0:02:52]} 44. Ra4 {[%emt 0:03:46]} Rd7 {[%emt 0:01:51]} 45. Rb4 {[%emt 0:00:44]} Rb7 {[%emt 0:00:13]} 46. Rd4 {[%emt 0:00:52]} Rd7 {[%emt 0:00:50]} 47. Rxd7 {[%emt 0:00:54]} Kxd7 {[%emt 0:00:03]} 48. Bg7 {[%emt 0:00:18]} h5 {[%emt 0:02:02]} 49. Bh6 {[%emt 0:01:06]} g4 {[%emt 0:01:59]} 50. Kg3 {[%emt 0:00:19]} Bf1 {[%emt 0:03:06]} 51. Kh4 {[%emt 0:11:21]} Bxg2 {[%emt 0:01:19]} 52. Kxh5 {[%emt 0:00:04]} g3 {[%emt 0:06:36]} 53. hxg3 {[%emt 0:00:16]} Kc6 {[%emt 0:00:05]} 54. Bf8 {[%emt 0:00:50]} Kb5 {[%emt 0:00:52]} 55. Kg5 {[%emt 0:00:35]} Bh3 {[%emt 0:00:08]} 56. b4 {[%emt 0:00:04]} Ka6 {[%emt 0:00:40]} 57. Kf6 {[%emt 0:00:22]} Bg4 {[%emt 0:00:28]} 58. Ke5 {[%emt 0:00:04]} Bh3 {[%emt 0:00:45]} 59. Kd6 {[%emt 0:00:14]} Bf1 {[%emt 0:00:55]} 60. Kc6 {[%emt 0:00:28]} Bb5+ {[%emt 0:00:35]} 61. Kc7 {[%emt 0:00:33]} Be2 {[%emt 0:00:10]} 62. Bc5 {[%emt 0:00:08]} Bf1 {[%emt 0:00:35]} 63. Bd4 {[%emt 0:00:09]} Be2 {[%emt 0:00:09]} 64. Kd6 {[%emt 0:00:06]} Bf1 {[%emt 0:00:51]} 65. Kd5 {[%emt 0:00:09]} Bh3 {[%emt 0:00:29]} 66. Kc6 {[%emt 0:00:29]} Bf1 {[%emt 0:00:07]} 67. Kd6 {[%emt 0:00:06]} Be2 {[%emt 0:00:08]} 68. Kc5 {[%emt 0:00:27]} Bf1 {[%emt 0:00:10]} 69. Be5 {[%emt 0:01:30]} Be2 {[%emt 0:00:28]} 70. Kd5 {[%emt 0:00:13]} Bg4 {[%emt 0:00:27]} 71. Bd6 {[%emt 0:00:49]} Bh3 {[%emt 0:00:12]} 72. Kd4 {[%emt 0:00:51]} Bg4 {[%emt 0:00:09]} 73. Ke5 {[%emt 0:00:45]} Bh3 {[%emt 0:00:07]} 74. Kd4 {[%emt 0:00:36]} Bg4 {[%emt 0:00:07]} 75. Kc5 {[%emt 0:00:40]} Be2 {[%emt 0:00:06]} 76. Kc6 {[%emt 0:00:09]} Bf1 {[%emt 0:00:07]} 77. Kd5 {[%emt 0:00:10]} Bh3 {[%emt 0:00:10]} 78. Kd4 {[%emt 0:00:21]} Bg4 {[%emt 0:03:13]} 1/2-1/2

[Event "Frauenbundesliga 2024-25"]
[Site "Germany"]
[Date "2025.02.15"]
[Round "5.2"]
[White "Pipiras, Filipa Fortuna"]
[Black "Unuk, Laura"]
[Result "1-0"]
[Annotator "ChessBase"]
[ECO "D31"]
[WhiteElo "2200"]
[BlackElo "2302"]
[PlyCount "109"]
[EventDate "2024.11.06"]
[EventType "team-tourn"]
[EventCountry "GER"]
[SourceTitle "playchess.com"]
[Source "ChessBase"]
[SourceQuality "1"]
[TimeControl "40/5400+30:1800+30"]

1. d4 {[%emt 0:00:04]} d5 {[%emt 0:00:29]} 2. c4 {[%emt 0:00:09]} e6 {[%emt 0:00:30]} 3. Nc3 {[%emt 0:00:41]} a6 {[%emt 0:02:30]} 4. cxd5 {[%emt 0:00:59]} exd5 {[%emt 0:01:15]} 5. Bf4 {[%emt 0:02:43]} Nf6 {[%emt 0:02:06]} 6. e3 {[%emt 0:00:30]} Bd6 {[%emt 0:05:37]} 7. Bxd6 {[%emt 0:03:20]} Qxd6 {[%emt 0:00:07]} 8. Bd3 {[%emt 0:00:07]} O-O {[%emt 0:03:29]} 9. Nge2 {[%emt 0:01:27]} Re8 {[%emt 0:06:28]} 10. O-O {[%emt 0:09:41]} Nc6 {[%emt 0:23:59]} 11. Ng3 {[%emt 0:19:22]} g6 {[%emt 0:04:07]} 12. Re1 {[%emt 0:09:46]} Kg7 {[%emt 0:04:29]} 13. Qd2 {[%emt 0:05:50]} h5 {[%emt 0:08:33]} 14. f3 {[%emt 0:06:42]} Nb4 {[%emt 0:15:14]} 15. Bf1 {[%emt 0:03:01]} h4 {[%emt 0:03:06]} 16. Nh1 {[%emt 0:12:37]} c5 {[%emt 0:00:34]} 17. dxc5 {[%emt 0:04:13]} Qxc5 {[%emt 0:00:09]} 18. Rac1 {[%emt 0:00:36]} Nc6 {[%emt 0:10:34]} 19. Nf2 {[%emt 0:09:11]} Qa7 {[%emt 0:02:13]} 20. Nxd5 {[%emt 0:04:53]} Nxd5 {[%emt 0:00:50]} 21. Qxd5 {[%emt 0:00:08]} Rxe3 {[%emt 0:00:18]} 22. Qg5 {[%emt 0:01:36]} Rxe1 {[%emt 0:01:21]} 23. Rxe1 {[%emt 0:00:05]} Be6 {[%emt 0:01:22]} 24. b3 {[%emt 0:01:59]} h3 {[%emt 0:01:01]} 25. g4 {[%emt 0:00:29]} Nd4 {[%emt 0:01:18]} 26. Qf4 {[%emt 0:00:45]} Rc8 {[%emt 0:01:04]} 27. Rd1 {[%emt 0:01:48]} Nc6 {[%emt 0:00:34]} 28. Bxh3 {[%emt 0:00:12]} Qc5 {[%emt 0:00:36]} 29. Rc1 {[%emt 0:01:03]} Qa3 {[%emt 0:00:29]} 30. Rc2 {[%emt 0:00:29]} Rd8 {[%emt 0:00:34]} 31. Ne4 {[%emt 0:00:37]} Rd1+ {[%emt 0:00:24]} 32. Bf1 {[%emt 0:00:40]} Qe7 {[%emt 0:00:07]} 33. Rd2 {[%emt 0:00:17]} Rxd2 {[%emt 0:00:33]} 34. Qxd2 {[%emt 0:00:25]} Bxg4 {[%emt 0:00:56]} 35. Qc3+ {[%emt 0:00:14]} f6 {[%emt 0:00:13]} 36. Nxf6 {[%emt 0:00:09]} Qxf6 {[%emt 0:00:44]} 37. Qxf6+ {[%emt 0:00:05]} Kxf6 {[%emt 0:00:06]} 38. fxg4 {[%emt 0:00:03]} Kg5 {[%emt 0:00:34]} 39. h3 {[%emt 0:00:54]} Nb4 {[%emt 0:00:42]} 40. a4 {[%emt 0:01:04]} Kf4 {[%emt 0:00:28]} 41. Kf2 {[%emt 0:06:52]} g5 {[%emt 0:20:54]} 42. a5 {[%emt 0:13:09]} Nc6 {[%emt 0:04:55]} 43. Bg2 {[%emt 0:01:31]} Nxa5 {[%emt 0:00:05]} 44. b4 {[%emt 0:00:05]} Nc6 {[%emt 0:06:09]} 45. Bxc6 {[%emt 0:00:18]} bxc6 {[%emt 0:00:02]} 46. Kg2 {[%emt 0:00:08]} Ke5 {[%emt 0:00:16]} 47. h4 {[%emt 0:04:34]} gxh4 {[%emt 0:00:23]} 48. Kh3 {[%emt 0:01:09]} c5 {[%emt 0:01:10]} 49. bxc5 {[%emt 0:00:10]} a5 {[%emt 0:00:03]} 50. g5 {[%emt 0:03:12]} a4 {[%emt 0:00:23]} 51. g6 {[%emt 0:00:51]} Kf6 {[%emt 0:00:54]} 52. c6 {[%emt 0:00:05]} a3 {[%emt 0:00:56]} 53. c7 {[%emt 0:00:06]} a2 {[%emt 0:00:13]} 54. c8=Q {[%emt 0:00:05]} a1=Q {[%emt 0:00:09]} 55. Qh8+ {[%emt 0:00:02]} 1-0